[Event "*** Titled Tuesday Blitz"]
[Site "Chess.com"]
[Date "2019.07.02"]
[Round "3"]
[White "Bryakin_Mikhail"]
[Black "IwkooO"]
[Result "1-0"]
[WhiteElo "2675"]
[BlackElo "2522"]
[TimeControl "180+2"]
[EndTime "13:40:08 PDT"]
[Termination "Bryakin_Mikhail won by resignation"]

1. d4 {[%clk 0:03:01.9]} 1... Nf6 {[%clk 0:02:59.5]} 2. c4 {[%clk 0:03:00.5]}
2... e6 {[%clk 0:03:01]} 3. g3 {[%clk 0:02:57.1]} 3... Bb4+ {[%clk 0:03:01.1]}
4. Bd2 {[%clk 0:02:58]} 4... Qe7 {[%clk 0:03:01.6]} 5. Bg2 {[%clk 0:02:58.7]}
5... O-O {[%clk 0:03:03.1]} 6. Nf3 {[%clk 0:02:41.7]} 6... Bxd2+ {[%clk
0:03:00.1]} 7. Qxd2 {[%clk 0:02:40.5]} 7... Ne4 {[%clk 0:03:01]} 8. Qc2 {[%clk
0:02:35.1]} 8... Qb4+ {[%clk 0:03:02]} 9. Nbd2 {[%clk 0:02:22.4]} 9... Nxd2
{[%clk 0:02:58.1]} 10. Nxd2 {[%clk 0:02:17.2]} 10... Nc6 {[%clk 0:02:59.6]} 11.
e3 {[%clk 0:02:17.2]} 11... d6 {[%clk 0:02:59.8]} 12. O-O {[%clk 0:02:10.5]}
12... e5 {[%clk 0:02:58.3]} 13. a3 {[%clk 0:02:04.2]} 13... Qb6 {[%clk
0:02:59.1]} 14. c5 {[%clk 0:02:03.6]} 14... dxc5 {[%clk 0:02:59.6]} 15. dxc5
{[%clk 0:01:59.3]} 15... Qb5 {[%clk 0:03:00.2]} 16. Rfd1 {[%clk 0:01:09.3]}
16... a5 {[%clk 0:02:56.2]} 17. Qc3 {[%clk 0:00:56.1]} 17... f6 {[%clk
0:02:54.9]} 18. Bd5+ {[%clk 0:00:56.5]} 18... Kh8 {[%clk 0:02:55.6]} 19. a4
{[%clk 0:00:49.2]} 19... Qb4 {[%clk 0:02:48.7]} 20. Bxc6 {[%clk 0:00:50]} 20...
Qxc3 {[%clk 0:02:50.1]} 21. bxc3 {[%clk 0:00:51.9]} 21... bxc6 {[%clk
0:02:51.6]} 22. Rab1 {[%clk 0:00:47.7]} 22... Be6 {[%clk 0:02:53.5]} 23. Kf1
{[%clk 0:00:42.4]} 23... Rfb8 {[%clk 0:02:53.2]} 24. Ke2 {[%clk 0:00:43.6]}
24... Kg8 {[%clk 0:02:54.3]} 25. Kd3 {[%clk 0:00:39.1]} 25... Kf7 {[%clk
0:02:55.5]} 26. Kc2 {[%clk 0:00:40.1]} 26... Ke7 {[%clk 0:02:56.2]} 27. e4
{[%clk 0:00:33.4]} 27... g6 {[%clk 0:02:52.9]} 28. h4 {[%clk 0:00:28.2]} 28...
h6 {[%clk 0:02:51.5]} 29. Rh1 {[%clk 0:00:26]} 29... Bf7 {[%clk 0:02:44]} 30.
Rxb8 {[%clk 0:00:16]} 30... Rxb8 {[%clk 0:02:45.3]} 31. Rb1 {[%clk 0:00:17.7]}
31... Rxb1 {[%clk 0:02:44.8]} 32. Kxb1 {[%clk 0:00:18.5]} 32... g5 {[%clk
0:02:46.5]} 33. c4 {[%clk 0:00:16.6]} 33... Kd7 {[%clk 0:02:42.1]} 34. Kc2
{[%clk 0:00:17.5]} 34... Kc8 {[%clk 0:02:42.4]} 35. Nb3 {[%clk 0:00:13.3]} 35...
Bxc4 {[%clk 0:02:41.2]} 36. Nxa5 {[%clk 0:00:14.7]} 36... Bf1 {[%clk 0:02:35.5]}
37. Nxc6 {[%clk 0:00:14.1]} 37... Kd7 {[%clk 0:02:27.1]} 38. Nb4 {[%clk
0:00:10.8]} 38... c6 {[%clk 0:02:26.8]} 39. Kd2 {[%clk 0:00:09.4]} 39... Bg2
{[%clk 0:02:24.5]} 40. Ke3 {[%clk 0:00:10.5]} 40... Bf1 {[%clk 0:02:23.9]} 41.
Na2 {[%clk 0:00:04.5]} 41... Kc7 {[%clk 0:02:23.9]} 42. Nb4 {[%clk 0:00:05.8]}
42... Kb7 {[%clk 0:02:24.9]} 43. f3 {[%clk 0:00:04.6]} 43... Bc4 {[%clk
0:02:24.4]} 44. Kd2 {[%clk 0:00:05.6]} 44... Bb3 {[%clk 0:02:24.4]} 45. a5
{[%clk 0:00:06.4]} 45... Bc4 {[%clk 0:02:26]} 46. Ke3 {[%clk 0:00:07.9]} 46...
Bb5 {[%clk 0:02:27.1]} 47. Kf2 {[%clk 0:00:09.1]} 47... Bc4 {[%clk 0:02:26.5]}
48. Kg2 {[%clk 0:00:10.5]} 48... Be2 {[%clk 0:02:25.6]} 49. Kf2 {[%clk
0:00:11.9]} 49... Bc4 {[%clk 0:02:26.4]} 50. Ke3 {[%clk 0:00:08.5]} 50... Bb5
{[%clk 0:02:27.3]} 51. f4 {[%clk 0:00:06.7]} 51... exf4+ {[%clk 0:02:27.1]} 52.
gxf4 {[%clk 0:00:08.1]} 52... gxh4 {[%clk 0:02:28.4]} 53. e5 {[%clk 0:00:09.6]}
53... fxe5 {[%clk 0:02:28.6]} 54. fxe5 {[%clk 0:00:11.5]} 54... Bc4 {[%clk
0:02:30.1]} 55. Kf4 {[%clk 0:00:12.8]} 55... Be6 {[%clk 0:02:30.6]} 56. a6+
{[%clk 0:00:14.2]} 56... Kc7 {[%clk 0:02:31.7]} 57. a7 {[%clk 0:00:14.7]} 57...
Kb7 {[%clk 0:02:33.1]} 58. Nxc6 {[%clk 0:00:16.2]} 58... h3 {[%clk 0:02:34.1]}
59. Kg3 {[%clk 0:00:17.6]} 59... Bd5 {[%clk 0:02:33.5]} 60. Ne7 {[%clk
0:00:13.9]} 60... Bg2 {[%clk 0:02:31.7]} 61. c6+ {[%clk 0:00:14.9]} 61... Kxa7
{[%clk 0:02:30.4]} 62. c7 {[%clk 0:00:16.2]} 62... Bb7 {[%clk 0:02:32]} 63. c8=Q
{[%clk 0:00:12.6]} 63... Bxc8 {[%clk 0:02:33.4]} 64. Nxc8+ {[%clk 0:00:14.5]}
64... Kb7 {[%clk 0:02:35]} 65. Nd6+ {[%clk 0:00:15.9]} 65... Kc6 {[%clk
0:02:36.3]} 66. Nc4 {[%clk 0:00:17.3]} 66... Kd5 {[%clk 0:02:36]} 67. Kxh3
{[%clk 0:00:18.6]} 1-0

[Event "*** Titled Tuesday Blitz"]
[Site "Chess.com"]
[Date "2019.07.02"]
[Round "3"]
[White "Olga_Zhuravleva"]
[Black "KRASAVCHIK2002"]
[Result "1-0"]
[WhiteElo "2134"]
[BlackElo "2225"]
[TimeControl "180+2"]
[EndTime "13:40:12 PDT"]
[Termination "Olga_Zhuravleva won by resignation"]

1. e4 {[%clk 0:02:48.7]} 1... c5 {[%clk 0:03:00.2]} 2. Nf3 {[%clk 0:02:49.2]}
2... d6 {[%clk 0:03:00.1]} 3. d4 {[%clk 0:02:50]} 3... cxd4 {[%clk 0:03:00.9]}
4. Nxd4 {[%clk 0:02:51.1]} 4... Nf6 {[%clk 0:03:02]} 5. Nc3 {[%clk 0:02:52]}
5... a6 {[%clk 0:03:03.3]} 6. Bd3 {[%clk 0:02:51.4]} 6... e5 {[%clk 0:03:03.8]}
7. Nb3 {[%clk 0:02:51]} 7... Be7 {[%clk 0:02:57.3]} 8. O-O {[%clk 0:02:51]} 8...
O-O {[%clk 0:02:58.2]} 9. Kh1 {[%clk 0:02:51]} 9... Be6 {[%clk 0:02:55.7]} 10.
f4 {[%clk 0:02:51.7]} 10... exf4 {[%clk 0:02:56.9]} 11. Bxf4 {[%clk 0:02:53.6]}
11... Nc6 {[%clk 0:02:58.4]} 12. Nd5 {[%clk 0:02:39]} 12... Bxd5 {[%clk
0:02:19.7]} 13. exd5 {[%clk 0:02:38.3]} 13... Ne5 {[%clk 0:02:21.3]} 14. c4
{[%clk 0:02:38.2]} 14... Nfd7 {[%clk 0:01:58.1]} 15. Nd4 {[%clk 0:02:22.5]}
15... g6 {[%clk 0:01:47.8]} 16. b3 {[%clk 0:02:20.5]} 16... Bg5 {[%clk
0:01:38.4]} 17. Bg3 {[%clk 0:02:13.5]} 17... Bf6 {[%clk 0:01:32.3]} 18. Rc1
{[%clk 0:02:11.8]} 18... Bg7 {[%clk 0:01:23.4]} 19. Bb1 {[%clk 0:02:09]} 19...
Rc8 {[%clk 0:01:15.7]} 20. Qd2 {[%clk 0:02:06.2]} 20... Nc5 {[%clk 0:00:46.7]}
21. h3 {[%clk 0:02:03.4]} 21... Qd7 {[%clk 0:00:37.3]} 22. Ne2 {[%clk
0:01:33.6]} 22... Rce8 {[%clk 0:00:24.4]} 23. Bf4 {[%clk 0:01:24.8]} 23... Qc7
{[%clk 0:00:18.4]} 24. Ng3 {[%clk 0:01:22.6]} 24... Ned7 {[%clk 0:00:18.9]} 25.
b4 {[%clk 0:01:15.5]} 25... Na4 {[%clk 0:00:17.8]} 26. c5 {[%clk 0:01:16.5]}
26... Be5 {[%clk 0:00:17.2]} 27. Bc2 {[%clk 0:00:58.7]} 27... b5 {[%clk
0:00:10.4]} 28. cxb6 {[%clk 0:00:56.6]} 28... Qxb6 {[%clk 0:00:10.7]} 29. Bxa4
{[%clk 0:00:56.2]} 29... Re7 {[%clk 0:00:10.2]} 30. Bxd7 {[%clk 0:00:53.4]}
30... Rxd7 {[%clk 0:00:12.1]} 31. Bh6 {[%clk 0:00:50]} 31... Re8 {[%clk
0:00:11.5]} 32. Ne4 {[%clk 0:00:49.9]} 32... f5 {[%clk 0:00:11.5]} 33. Ng5
{[%clk 0:00:49.1]} 33... Rb7 {[%clk 0:00:08.5]} 34. Ne6 {[%clk 0:00:49.6]} 34...
Qxb4 {[%clk 0:00:09.6]} 35. Qg5 {[%clk 0:00:45.4]} 35... Qa5 {[%clk 0:00:06.1]}
36. Rxf5 {[%clk 0:00:39.7]} 36... Qxd5 {[%clk 0:00:07.1]} 37. Rf8+ {[%clk
0:00:29.6]} 37... Rxf8 {[%clk 0:00:07]} 38. Nxf8 {[%clk 0:00:30.2]} 38... Rf7
{[%clk 0:00:05.5]} 39. Nxg6 {[%clk 0:00:30.2]} 39... hxg6 {[%clk 0:00:03.5]} 40.
Qxg6+ {[%clk 0:00:31.3]} 40... Bg7 {[%clk 0:00:03.2]} 41. Rc8+ {[%clk
0:00:31.9]} 1-0

[Event "*** Titled Tuesday Blitz"]
[Site "Chess.com"]
[Date "2019.07.02"]
[Round "3"]
[White "XiaoKangZhong"]
[Black "Komissarov_alex"]
[Result "1-0"]
[WhiteElo "2246"]
[BlackElo "2128"]
[TimeControl "180+2"]
[EndTime "13:40:13 PDT"]
[Termination "XiaoKangZhong won on time"]

1. e4 {[%clk 0:03:01.9]} 1... e5 {[%clk 0:03:00.1]} 2. Nf3 {[%clk 0:03:02.1]}
2... Nc6 {[%clk 0:03:00.8]} 3. Bc4 {[%clk 0:03:02.4]} 3... Nf6 {[%clk
0:02:58.4]} 4. d3 {[%clk 0:03:00.6]} 4... d5 {[%clk 0:02:56.7]} 5. exd5 {[%clk
0:03:01.3]} 5... Nxd5 {[%clk 0:02:57.8]} 6. O-O {[%clk 0:03:03.2]} 6... Bc5
{[%clk 0:02:39.6]} 7. c3 {[%clk 0:02:34.6]} 7... O-O {[%clk 0:02:35.6]} 8. b4
{[%clk 0:02:33.1]} 8... Bb6 {[%clk 0:02:31.2]} 9. b5 {[%clk 0:02:32.8]} 9... Na5
{[%clk 0:02:28.3]} 10. Nxe5 {[%clk 0:02:31.6]} 10... Nxc4 {[%clk 0:02:21.5]} 11.
Nxc4 {[%clk 0:02:27.5]} 11... Qf6 {[%clk 0:02:06]} 12. Nxb6 {[%clk 0:02:24.9]}
12... axb6 {[%clk 0:02:04]} 13. Bb2 {[%clk 0:02:22.6]} 13... Bf5 {[%clk
0:02:01.7]} 14. Qd2 {[%clk 0:02:16.1]} 14... Qg6 {[%clk 0:01:58.6]} 15. d4
{[%clk 0:02:10.6]} 15... Bh3 {[%clk 0:01:50.7]} 16. f4 {[%clk 0:01:39.5]} 16...
Ne3 {[%clk 0:01:25.9]} 17. Rf3 {[%clk 0:01:27.5]} 17... Nxg2 {[%clk 0:00:49.1]}
18. Rg3 {[%clk 0:01:27.7]} 18... Nh4 {[%clk 0:00:44.8]} 19. Rxg6 {[%clk
0:00:50.9]} 19... Nf3+ {[%clk 0:00:44.8]} 20. Kh1 {[%clk 0:00:52.4]} 20... Nxd2
{[%clk 0:00:44.5]} 21. Rg3 {[%clk 0:00:54]} 21... Nxb1 {[%clk 0:00:42.4]} 22.
Rxh3 {[%clk 0:00:53.2]} 22... Nd2 {[%clk 0:00:42.4]} 23. Rd3 {[%clk 0:00:51]}
23... Nc4 {[%clk 0:00:41.5]} 24. Bc1 {[%clk 0:00:51.2]} 24... Rfe8 {[%clk
0:00:41]} 25. Kg2 {[%clk 0:00:51.8]} 25... Re2+ {[%clk 0:00:39.1]} 26. Kg3
{[%clk 0:00:52.1]} 26... Rexa2 {[%clk 0:00:34.2]} 27. Rxa2 {[%clk 0:00:53]}
27... Rxa2 {[%clk 0:00:33]} 28. d5 {[%clk 0:00:54.4]} 28... Rc2 {[%clk
0:00:29.7]} 29. Be3 {[%clk 0:00:51.2]} 29... Nd6 {[%clk 0:00:28.8]} 30. Bd4
{[%clk 0:00:48.3]} 30... Nxb5 {[%clk 0:00:27.8]} 31. Re3 {[%clk 0:00:49.1]}
31... Kf8 {[%clk 0:00:16]} 32. Be5 {[%clk 0:00:46.9]} 32... f6 {[%clk
0:00:14.8]} 33. Bxc7 {[%clk 0:00:35.6]} 33... Nxc7 {[%clk 0:00:14.4]} 34. d6
{[%clk 0:00:36.8]} 34... Nd5 {[%clk 0:00:04.4]} 35. d7 {[%clk 0:00:37.2]} 35...
Nxe3 {[%clk 0:00:02.2]} 36. d8=Q+ {[%clk 0:00:38.2]} 36... Kf7 {[%clk
0:00:03.3]} 37. Qd7+ {[%clk 0:00:33]} 37... Kg6 {[%clk 0:00:03.2]} 38. Qd3+
{[%clk 0:00:33.4]} 38... Nf5+ {[%clk 0:00:03.3]} 39. Kg4 {[%clk 0:00:30.4]}
39... Rb2 {[%clk 0:00:05.2]} 40. Qxf5+ {[%clk 0:00:30.7]} 1-0

[Event "*** Titled Tuesday Blitz"]
[Site "Chess.com"]
[Date "2019.07.02"]
[Round "3"]
[White "HanSchut"]
[Black "Andrii_Prydun"]
[Result "1-0"]
[WhiteElo "2223"]
[BlackElo "2291"]
[TimeControl "180+2"]
[EndTime "13:40:14 PDT"]
[Termination "HanSchut won by resignation"]

1. e4 {[%clk 0:03:01.9]} 1... c6 {[%clk 0:03:00.3]} 2. d4 {[%clk 0:03:02.4]}
2... d5 {[%clk 0:03:01.6]} 3. exd5 {[%clk 0:03:02.9]} 3... cxd5 {[%clk
0:03:02.5]} 4. c4 {[%clk 0:03:04.8]} 4... Nf6 {[%clk 0:03:03.5]} 5. Nc3 {[%clk
0:03:06.3]} 5... e6 {[%clk 0:03:04.7]} 6. Nf3 {[%clk 0:03:07.5]} 6... dxc4
{[%clk 0:02:56.3]} 7. Bxc4 {[%clk 0:03:07.1]} 7... Be7 {[%clk 0:02:57.4]} 8. Bg5
{[%clk 0:03:02.3]} 8... O-O {[%clk 0:02:58.3]} 9. Qe2 {[%clk 0:03:01.9]} 9...
Nc6 {[%clk 0:02:58.6]} 10. Rd1 {[%clk 0:02:58.7]} 10... Nd5 {[%clk 0:02:52.4]}
11. Bc1 {[%clk 0:02:29.9]} 11... Bb4 {[%clk 0:02:39.4]} 12. Bd2 {[%clk
0:02:09.6]} 12... Qa5 {[%clk 0:02:28.8]} 13. O-O {[%clk 0:01:57]} 13... Nxc3
{[%clk 0:02:27.6]} 14. bxc3 {[%clk 0:01:54.7]} 14... Bxc3 {[%clk 0:02:28.5]} 15.
Bxc3 {[%clk 0:01:35.9]} 15... Qxc3 {[%clk 0:02:29.3]} 16. Bd3 {[%clk 0:01:31.5]}
16... Nb4 {[%clk 0:01:39]} 17. Bxh7+ {[%clk 0:01:22.8]} 17... Kxh7 {[%clk
0:01:39]} 18. Ng5+ {[%clk 0:01:23.7]} 18... Kg6 {[%clk 0:01:27.3]} 19. Qg4
{[%clk 0:01:13]} 19... f5 {[%clk 0:00:44.6]} 20. Qh4 {[%clk 0:00:59]} 20... Nd5
{[%clk 0:00:24.1]} 21. f4 {[%clk 0:00:30.7]} 21... Nf6 {[%clk 0:00:23.3]} 22.
Nf3 {[%clk 0:00:22.8]} 22... Kf7 {[%clk 0:00:19.2]} 23. Ne5+ {[%clk 0:00:21.6]}
23... Ke8 {[%clk 0:00:20]} 24. Qg5 {[%clk 0:00:20.6]} 24... Qc7 {[%clk
0:00:18.7]} 25. Qg6+ {[%clk 0:00:20.7]} 25... Kd8 {[%clk 0:00:17.6]} 26. Rc1
{[%clk 0:00:21.9]} 26... Qe7 {[%clk 0:00:17.5]} 27. Rc5 {[%clk 0:00:20.7]} 27...
Bd7 {[%clk 0:00:17.9]} 28. Rfc1 {[%clk 0:00:21]} 28... Rc8 {[%clk 0:00:17.1]}
29. Qg3 {[%clk 0:00:13.4]} 29... b6 {[%clk 0:00:15.4]} 30. Rxc8+ {[%clk
0:00:12.8]} 30... Bxc8 {[%clk 0:00:15.8]} 31. Nc6+ {[%clk 0:00:14.3]} 31... Ke8
{[%clk 0:00:10.9]} 32. Nxe7 {[%clk 0:00:15.6]} 32... Kxe7 {[%clk 0:00:12.8]} 33.
Qxg7+ {[%clk 0:00:13.8]} 33... Rf7 {[%clk 0:00:12.5]} 34. Qxf7+ {[%clk
0:00:11.5]} 34... Kxf7 {[%clk 0:00:12.3]} 35. Rxc8 {[%clk 0:00:13.1]} 35... Nd5
{[%clk 0:00:12.1]} 36. g3 {[%clk 0:00:07.4]} 36... Ke7 {[%clk 0:00:10.7]} 37.
Ra8 {[%clk 0:00:08.2]} 37... a5 {[%clk 0:00:11.4]} 38. Rb8 {[%clk 0:00:09.8]}
38... Kd7 {[%clk 0:00:12]} 39. h4 {[%clk 0:00:08.4]} 39... Kc7 {[%clk
0:00:11.5]} 40. Rf8 {[%clk 0:00:07.8]} 40... Ne3 {[%clk 0:00:11.8]} 41. h5
{[%clk 0:00:07.7]} 41... Ng4 {[%clk 0:00:12.7]} 42. Rg8 {[%clk 0:00:06.6]} 1-0

[Event "*** Titled Tuesday Blitz"]
[Site "Chess.com"]
[Date "2019.07.02"]
[Round "3"]
[White "Muisback26"]
[Black "Korchmar_Vasiliy"]
[Result "1-0"]
[WhiteElo "2958"]
[BlackElo "2756"]
[TimeControl "180+2"]
[EndTime "13:40:16 PDT"]
[Termination "Muisback26 won by resignation"]

1. e4 {[%clk 0:03:01.8]} 1... c5 {[%clk 0:03:01]} 2. Nf3 {[%clk 0:03:02.9]} 2...
d6 {[%clk 0:03:02.4]} 3. Nc3 {[%clk 0:03:03.6]} 3... Nc6 {[%clk 0:03:01.7]} 4.
g3 {[%clk 0:03:03]} 4... g6 {[%clk 0:03:02.2]} 5. Bg2 {[%clk 0:03:04.4]} 5...
Bg7 {[%clk 0:03:03.6]} 6. O-O {[%clk 0:03:05.9]} 6... e5 {[%clk 0:03:04.6]} 7.
d3 {[%clk 0:03:06.9]} 7... Nge7 {[%clk 0:03:05.8]} 8. a3 {[%clk 0:03:01]} 8...
O-O {[%clk 0:02:53.4]} 9. Rb1 {[%clk 0:03:00.6]} 9... h6 {[%clk 0:02:42.5]} 10.
b4 {[%clk 0:03:00.7]} 10... b6 {[%clk 0:02:43.1]} 11. bxc5 {[%clk 0:02:59.1]}
11... dxc5 {[%clk 0:02:41]} 12. Nd5 {[%clk 0:02:54]} 12... Nxd5 {[%clk 0:02:23]}
13. exd5 {[%clk 0:02:55]} 13... Ne7 {[%clk 0:02:11.8]} 14. Nxe5 {[%clk
0:02:32.8]} 14... Bb7 {[%clk 0:01:31.1]} 15. Nc6 {[%clk 0:02:29.9]} 15... Bxc6
{[%clk 0:01:32]} 16. dxc6 {[%clk 0:02:31.4]} 16... Rc8 {[%clk 0:01:33.6]} 17.
Bh3 {[%clk 0:01:31.4]} 17... Rxc6 {[%clk 0:01:33.5]} 18. Re1 {[%clk 0:01:32.6]}
18... Nd5 {[%clk 0:01:31.6]} 19. Qf3 {[%clk 0:01:31.5]} 19... Rf6 {[%clk
0:01:27.3]} 20. Qg2 {[%clk 0:01:24.3]} 20... Nc3 {[%clk 0:01:28.3]} 21. Rb3
{[%clk 0:01:24.9]} 21... Re8 {[%clk 0:01:19.7]} 22. Qf1 {[%clk 0:01:13.5]} 22...
Rd6 {[%clk 0:00:52.1]} 23. Bf4 {[%clk 0:01:07.4]} 23... Rd5 {[%clk 0:00:40.1]}
24. Bd2 {[%clk 0:01:01.3]} 24... Rxe1 {[%clk 0:00:24.4]} 25. Bxe1 {[%clk
0:00:58.9]} 25... Na4 {[%clk 0:00:15.9]} 26. Bg2 {[%clk 0:00:54]} 26... Rd6
{[%clk 0:00:14.4]} 27. c4 {[%clk 0:00:29]} 27... Nb2 {[%clk 0:00:11.4]} 28. Be4
{[%clk 0:00:29]} 28... Kh7 {[%clk 0:00:08.4]} 29. Qe2 {[%clk 0:00:27.4]} 29...
Na4 {[%clk 0:00:06.9]} 30. Qf3 {[%clk 0:00:25.9]} 30... Rf6 {[%clk 0:00:07.7]}
31. Qe2 {[%clk 0:00:25.9]} 31... Qd4 {[%clk 0:00:07.6]} 32. Kg2 {[%clk
0:00:24.2]} 32... Re6 {[%clk 0:00:08.4]} 33. Qf1 {[%clk 0:00:16.9]} 33... f5
{[%clk 0:00:09.3]} 34. Bd5 {[%clk 0:00:18.3]} 34... Re7 {[%clk 0:00:10.1]} 35.
Bd2 {[%clk 0:00:19]} 35... g5 {[%clk 0:00:08.5]} 36. Qd1 {[%clk 0:00:18.5]}
36... Nb2 {[%clk 0:00:06.7]} 37. Qf3 {[%clk 0:00:19.6]} 37... Kg6 {[%clk
0:00:05.1]} 38. Bc3 {[%clk 0:00:21.1]} 38... Qxd3 {[%clk 0:00:04.2]} 39. Bxb2
{[%clk 0:00:22.5]} 39... Qxf3+ {[%clk 0:00:04.4]} 40. Bxf3 {[%clk 0:00:23.8]}
1-0

[Event "*** Titled Tuesday Blitz"]
[Site "Chess.com"]
[Date "2019.07.02"]
[Round "3"]
[White "Eliwood44"]
[Black "DACF2905"]
[Result "0-1"]
[WhiteElo "2332"]
[BlackElo "2228"]
[TimeControl "180+2"]
[EndTime "13:40:21 PDT"]
[Termination "DACF2905 won by resignation"]

1. d4 {[%clk 0:03:01.9]} 1... Nf6 {[%clk 0:03:00]} 2. c4 {[%clk 0:03:02.8]} 2...
e6 {[%clk 0:03:01.2]} 3. Nc3 {[%clk 0:03:01.1]} 3... c5 {[%clk 0:03:02.2]} 4. e3
{[%clk 0:03:01.1]} 4... cxd4 {[%clk 0:02:57.1]} 5. exd4 {[%clk 0:03:01.9]} 5...
d5 {[%clk 0:02:58.7]} 6. Nf3 {[%clk 0:03:03.3]} 6... Be7 {[%clk 0:02:58.9]} 7.
cxd5 {[%clk 0:02:59.8]} 7... exd5 {[%clk 0:02:59.3]} 8. Bd3 {[%clk 0:03:01.3]}
8... O-O {[%clk 0:02:59]} 9. h3 {[%clk 0:03:02.3]} 9... h6 {[%clk 0:02:59.9]}
10. O-O {[%clk 0:03:02.1]} 10... Nc6 {[%clk 0:03:00.9]} 11. Be3 {[%clk
0:03:01.7]} 11... Be6 {[%clk 0:03:01]} 12. Rc1 {[%clk 0:02:59.4]} 12... Rc8
{[%clk 0:03:01]} 13. Qe2 {[%clk 0:02:59.4]} 13... Re8 {[%clk 0:02:57.4]} 14.
Rfd1 {[%clk 0:03:00]} 14... Bf8 {[%clk 0:02:54.1]} 15. Ne5 {[%clk 0:02:57.1]}
15... Ne7 {[%clk 0:02:51.4]} 16. Bb5 {[%clk 0:02:51.5]} 16... Nd7 {[%clk
0:02:50.5]} 17. Bf4 {[%clk 0:02:44.1]} 17... a6 {[%clk 0:02:49.3]} 18. Ba4
{[%clk 0:02:44.8]} 18... b5 {[%clk 0:02:49.2]} 19. Bb3 {[%clk 0:02:45.4]} 19...
Nb6 {[%clk 0:02:47.4]} 20. Qf3 {[%clk 0:02:35.2]} 20... Nc4 {[%clk 0:02:42.2]}
21. Bxc4 {[%clk 0:02:34.5]} 21... dxc4 {[%clk 0:02:41.2]} 22. d5 {[%clk
0:02:33.3]} 22... Bf5 {[%clk 0:02:40.6]} 23. d6 {[%clk 0:02:29.3]} 23... Ng6
{[%clk 0:02:38.5]} 24. d7 {[%clk 0:02:28.3]} 24... Nxe5 {[%clk 0:02:38.9]} 25.
Bxe5 {[%clk 0:02:23.9]} 25... Bxd7 {[%clk 0:02:29.6]} 26. Qg3 {[%clk 0:02:16]}
26... Qe7 {[%clk 0:02:24.8]} 27. Bd6 {[%clk 0:02:17.1]} 27... Qe6 {[%clk
0:02:21]} 28. Bxf8 {[%clk 0:02:18.1]} 28... Rxf8 {[%clk 0:02:20.8]} 29. Rd6
{[%clk 0:02:18.7]} 29... Qe7 {[%clk 0:02:19.2]} 30. Rxa6 {[%clk 0:02:17]} 30...
Qg5 {[%clk 0:02:08.5]} 31. Qxg5 {[%clk 0:02:16.7]} 31... hxg5 {[%clk 0:02:09]}
32. Ne4 {[%clk 0:02:10.8]} 32... f6 {[%clk 0:02:06]} 33. Ra7 {[%clk 0:02:01.3]}
33... Bc6 {[%clk 0:02:03.3]} 34. Nd6 {[%clk 0:02:00.8]} 34... Rcd8 {[%clk
0:02:00]} 35. Nf5 {[%clk 0:02:01.1]} 35... Bd7 {[%clk 0:01:49.4]} 36. Ne7+
{[%clk 0:01:55.6]} 36... Kh7 {[%clk 0:01:45.9]} 37. Rd1 {[%clk 0:01:51.5]} 37...
Be6 {[%clk 0:01:40.7]} 38. Re1 {[%clk 0:01:47.9]} 38... Rd6 {[%clk 0:01:30.5]}
39. h4 {[%clk 0:01:41.6]} 39... gxh4 {[%clk 0:01:29.9]} 40. Re4 {[%clk 0:01:41]}
40... g5 {[%clk 0:01:14]} 41. Nf5+ {[%clk 0:01:32.1]} 41... Rd7 {[%clk
0:01:11.6]} 42. Rxd7+ {[%clk 0:01:32]} 42... Bxd7 {[%clk 0:01:12.4]} 43. Re7+
{[%clk 0:01:31.3]} 43... Kg6 {[%clk 0:01:13.5]} 44. Nxh4+ {[%clk 0:01:20.4]}
44... gxh4 {[%clk 0:01:14.2]} 45. Rxd7 {[%clk 0:01:22.3]} 45... Re8 {[%clk
0:01:15.1]} 46. Rd5 {[%clk 0:01:21.1]} 46... Re1+ {[%clk 0:01:11.2]} 47. Kh2
{[%clk 0:01:22.1]} 47... Re5 {[%clk 0:01:13.1]} 48. Rd4 {[%clk 0:01:19.2]} 48...
Kg5 {[%clk 0:01:13.5]} 49. Kh3 {[%clk 0:01:19.4]} 49... Re2 {[%clk 0:01:14.4]}
50. Rd5+ {[%clk 0:01:20.1]} 50... Re5 {[%clk 0:01:14.7]} 51. Rd2 {[%clk
0:01:06.4]} 51... b4 {[%clk 0:01:07.8]} 52. f4+ {[%clk 0:01:03.6]} 52... Kxf4
{[%clk 0:01:06.8]} 53. Kxh4 {[%clk 0:01:04.1]} 53... Ke3 {[%clk 0:01:05.3]} 54.
Rd6 {[%clk 0:01:02.4]} 54... Rf5 {[%clk 0:01:02]} 55. g4 {[%clk 0:01:01.1]}
55... Rf1 {[%clk 0:01:01.9]} 56. g5 {[%clk 0:00:54.8]} 56... fxg5+ {[%clk
0:01:02.2]} 57. Kxg5 {[%clk 0:00:55.8]} 57... c3 {[%clk 0:01:03.5]} 58. bxc3
{[%clk 0:00:56.6]} 58... bxc3 {[%clk 0:01:04.4]} 59. Re6+ {[%clk 0:00:52]} 59...
Kd2 {[%clk 0:01:03.7]} 60. Rd6+ {[%clk 0:00:53.1]} 60... Kc2 {[%clk 0:01:01.2]}
61. a4 {[%clk 0:00:54]} 61... Kb3 {[%clk 0:01:02.2]} 62. a5 {[%clk 0:00:51.5]}
62... c2 {[%clk 0:01:01.2]} 63. Rc6 {[%clk 0:00:52.1]} 63... c1=Q+ {[%clk
0:01:00.9]} 0-1